fUSD/lending_fUSD_20250720
["ID","MTS","AMOUNT","RATE_DAILY","PERIOD"]
[373492155,1753021847236,-480.0,0.00019178,2]
[373492156,1753021847246,-480.0,0.00019178,2]
[373492158,1753021847256,-1284.82,0.00019178,2]
[373492160,1753021847267,-1600.36,0.00019178,2]
[373492162,1753021847277,-480.0,0.00019178,2]
[373492164,1753021847287,-480.0,0.00019178,2]
[373492166,1753021847297,-480.0,0.00019178,2]
[373492167,1753021847307,-480.000001,0.00019178,2]
[373492169,1753021847317,-480.0,0.00019178,2]
[373492171,1753021847327,-2104.01898685,0.00019178,2]
[373492173,1753021847342,-3745.50101315,0.00019178,2]
[373492175,1753021847352,-336.79719811,0.00019178,2]
[373492177,1753021847361,-1977.16,0.00019178,2]
[373492179,1753021847371,-1176.84,0.00019178,2]
[373492181,1753021847380,-480.0,0.00019178,2]
[373492183,1753021847390,-480.0,0.00019178,2]
[373492185,1753021847400,-378.8,0.00019178,2]
[373492187,1753021847410,-1133.97,0.00019178,2]
[373492188,1753021847420,-480.0,0.00019178,2]
[373492190,1753021847429,-190.24,0.00019178,2]
[373492192,1753021847439,-480.0,0.00019178,2]
[373492194,1753021847449,-480.0,0.00019178,2]
[373492196,1753021847458,-480.0,0.00019178,2]
[373492198,1753021847468,-480.0,0.00019178,2]
[373492200,1753021847479,-480.0,0.00019178,2]
[373492202,1753021847488,-1065.25,0.00019178,2]
[373492204,1753021847498,-480.0,0.00019178,2]
[373492206,1753021847507,-480.0,0.00019178,2]
[373492207,1753021847517,-480.0,0.00019178,2]
[373492209,1753021847527,-6236.13,0.00019178,2]
[373492211,1753021847537,-3179.49,0.00019178,2]
[373492213,1753021847546,-500.0,0.00019178,2]
[373492215,1753021847556,-500.0,0.00019178,2]
[373492217,1753021847565,-861.28,0.00019178,2]
[373492219,1753021847574,-480.0,0.00019178,2]
[373492221,1753021847584,-460.0,0.00019178,2]
[373492222,1753021847593,-480.0,0.00019178,2]
[373492224,1753021847603,-1386.17,0.00019178,2]
[373492226,1753021847613,-480.0,0.00019178,2]
[373492228,1753021847622,-480.0,0.00019178,2]
[373492230,1753021847632,-480.0,0.00019178,2]
[373492232,1753021847641,-480.0,0.00019178,2]
[373492234,1753021847651,-1018.59,0.00019178,2]
[373492236,1753021847660,-951.34,0.00019178,2]
[373492238,1753021847670,-480.0,0.00019178,2]
[373492240,1753021847681,-480.0,0.00019178,2]
[373492242,1753021847691,-453.614876,0.00019178,2]
[373492244,1753021847701,-1420.25,0.00019178,2]
[373492245,1753021847711,-480.0,0.00019178,2]
[373492247,1753021847720,-480.0,0.00019178,2]
[373492249,1753021847732,-365.39583704,0.00019178,2]
[373492251,1753021847741,-480.0,0.00019178,2]
[373492253,1753021847750,-868.67,0.00019178,2]
[373492255,1753021847760,-1068.91,0.00019178,2]
[373492257,1753021847769,-2284.55,0.00019178,2]
[373492259,1753021847781,-480.0,0.00019178,2]
[373492261,1753021847790,-1044.36,0.00019178,2]
[373492263,1753021847800,-480.0,0.00019178,2]
[373492265,1753021847813,-480.0,0.00019178,2]
[373492267,1753021847823,-480.0,0.00019178,2]
[373492269,1753021847833,-1079.42,0.00019178,2]
[373492270,1753021847843,-480.0,0.00019178,2]
[373492272,1753021847853,-480.0,0.00019178,2]
[373492274,1753021847863,-3020.27,0.00019178,2]
[373492276,1753021847873,-480.0,0.00019178,2]
[373492278,1753021847883,-480.0,0.00019178,2]
[373492280,1753021847893,-480.0,0.00019178,2]
[373492282,1753021847903,-480.0,0.00019178,2]
[373492284,1753021847912,-480.0,0.00019178,2]
[373492286,1753021847922,-480.0,0.00019178,2]
[373492288,1753021847932,-536.69,0.00019178,2]
[373492290,1753021847941,-480.0,0.00019178,2]
[373492291,1753021847951,-878.99,0.00019178,2]
[373492293,1753021847961,-176.71702769,0.00019178,2]
[373492295,1753021847970,-2288.61,0.00019178,2]
[373492297,1753021847982,-539.76,0.00019178,2]
[373492299,1753021847991,-926.32,0.00019178,2]
[373492301,1753021848001,-480.0,0.00019178,2]
[373492303,1753021848010,-500.0,0.00019178,2]
[373492305,1753021848020,-701.99,0.00019178,2]
[373492307,1753021848030,-480.0,0.00019178,2]
[373492308,1753021848040,-884.52,0.00019178,2]
[373492310,1753021848052,-480.0,0.00019178,2]
[373492312,1753021848062,-480.0,0.00019178,2]
[373492314,1753021848072,-2500.38,0.00019178,2]
[373492316,1753021848082,-480.0,0.00019178,2]
[373492318,1753021848091,-1046.54,0.00019178,2]
[373492320,1753021848101,-480.0,0.00019178,2]
[373492322,1753021848111,-480.0,0.00019178,2]
[373492324,1753021848121,-480.0,0.00019178,2]
[373492325,1753021848132,-1332.74,0.00019178,2]
[373492327,1753021848141,-480.0,0.00019178,2]
[373492329,1753021848151,-1817.63,0.00019178,2]
[373492331,1753021848161,-480.0,0.00019178,2]
[373492333,1753021848171,-480.0,0.00019178,2]
[373492335,1753021848180,-460.0,0.00019178,2]
[373492337,1753021848191,-480.0,0.00019178,2]
[373492339,1753021848201,-480.0,0.00019178,2]
[373492341,1753021848211,-480.0,0.00019178,2]
[373492343,1753021848221,-4906.54,0.00019178,2]
[373492345,1753021848234,-480.0,0.00019178,2]
[373492347,1753021848244,-480.0,0.00019178,2]
[373492349,1753021848254,-480.0,0.00019178,2]
[373492350,1753021848264,-300.0,0.00019178,2]
[373492352,1753021848274,-2269.17,0.00019178,2]
[373492354,1753021848283,-480.0,0.00019178,2]
[373492356,1753021848293,-480.0,0.00019178,2]
[373492358,1753021848303,-480.0,0.00019178,2]
[373492360,1753021848313,-1014.77,0.00019178,2]
[373492362,1753021848323,-460.0,0.00019178,2]
[373492364,1753021848333,-480.0,0.00019178,2]
[373492366,1753021848344,-480.0,0.00019178,2]
[373492368,1753021848358,-480.0,0.00019178,2]
[373492370,1753021848368,-425.37741346,0.00019178,2]
[373492372,1753021848378,-780.33,0.00019178,2]
[373492374,1753021848388,-480.0,0.00019178,2]
[373492376,1753021848398,-2405.56,0.00019178,2]
[373492378,1753021848408,-559.93,0.00019178,2]
[373492380,1753021848419,-460.0,0.00019178,2]
[373492381,1753021848428,-480.0,0.00019178,2]
[373492382,1753021848438,-480.0,0.00019178,2]
[373492383,1753021848448,-1898.5,0.00019178,2]
[373492384,1753021848458,-655.91,0.00019178,2]
[373492385,1753021848468,-3824.04,0.00019178,2]
[373492386,1753021848479,-480.0,0.00019178,2]
[373492387,1753021848489,-480.0,0.00019178,2]
[373492388,1753021848499,-480.0,0.00019178,2]
[373492389,1753021848508,-480.0,0.00019178,2]
[373492390,1753021848518,-6079.07,0.00019178,2]
[373492391,1753021848528,-527.22,0.00019178,2]
[373492392,1753021848538,-480.0,0.00019178,2]
[373492393,1753021848549,-460.0,0.00019178,2]
[373492394,1753021848558,-529.55,0.00019178,2]
[373492395,1753021848569,-480.0,0.00019178,2]
[373492396,1753021848579,-480.0,0.00019178,2]
[373492397,1753021848589,-500.0,0.00019178,2]
[373492398,1753021848598,-500.0,0.00019178,2]
[373492399,1753021848608,-434.33362683,0.00019178,2]
[373492400,1753021848618,-480.0,0.00019178,2]
[373492401,1753021848628,-480.0,0.00019178,2]
[373492402,1753021848638,-480.0,0.00019178,2]
[373492404,1753021848647,-460.0,0.00019178,2]
[373492406,1753021848657,-1802.74,0.00019178,2]
[373492407,1753021848668,-480.0,0.00019178,2]
[373492410,1753021848677,-480.0,0.00019178,2]
[373492412,1753021848688,-480.0,0.00019178,2]
[373492414,1753021848697,-480.0,0.00019178,2]
[373492416,1753021848707,-480.0,0.00019178,2]
[373492418,1753021848716,-480.0,0.00019178,2]
[373492420,1753021848727,-480.0,0.00019178,2]
[373492421,1753021848737,-500.0,0.00019178,2]
[373492424,1753021848747,-195.199094,0.00019178,2]
[373492426,1753021848756,-500.0,0.00019178,2]
[373492428,1753021848766,-500.0,0.00019178,2]
[373492430,1753021848775,-480.0,0.00019178,2]
[373492432,1753021848786,-500.0,0.00019178,2]
[373492434,1753021848796,-480.0,0.00019178,2]
[373492436,1753021848806,-480.0,0.00019178,2]
[373492438,1753021848817,-480.000001,0.00019178,2]
[373492440,1753021848828,-480.0,0.00019178,2]
[373492442,1753021848838,-460.0,0.00019178,2]
[373492444,1753021848848,-480.0,0.00019178,2]
[373492446,1753021848858,-480.0,0.00019178,2]
[373492448,1753021848868,-3522.26,0.00019178,2]
[373492450,1753021848878,-163.56,0.00019178,2]
[373492452,1753021848887,-151.89,0.00019178,2]
[373492454,1753021848897,-159.71774378,0.0001918,2]
[373492456,1753021848907,-709.84651182,0.00019187,2]
[373492458,1753021848916,-14910.75136849,0.00019197,2]
[373492544,1753021849742,-174.58825564,0.00018751,2]
[373492546,1753021849752,-191.72794564,0.00019,2]
[373492548,1753021849761,-86.67529185,0.00019178,2]
[373492550,1753021849773,-393.32470815,0.00019178,2]
[373492552,1753021849782,-480.0,0.00019178,2]
[373492554,1753021849791,-460.0,0.00019178,2]
[373492556,1753021849801,-480.0,0.00019178,2]
[373492558,1753021849810,-480.0,0.00019178,2]
[373492560,1753021849820,-480.0,0.00019178,2]
[373492563,1753021849829,-480.0,0.00019178,2]
[373492565,1753021849840,-460.0,0.00019178,2]
[373492567,1753021849849,-85.15707916,0.00019178,2]
[373492569,1753021849861,-394.84292084,0.00019178,2]
[373492571,1753021849871,-480.0,0.00019178,2]
[373492573,1753021849880,-480.0,0.00019178,2]
[373492575,1753021849890,-460.0,0.00019178,2]
[373492577,1753021849900,-376.16868029,0.00019197,2]
[373492579,1753021849912,-54.74915367,0.00019197,2]
[373492581,1753021849921,-310.68024633,0.00019248,2]
[373492584,1753021849933,-347.659104,0.00019248,2]
[373492586,1753021849944,-1211.70925765,0.00019248,2]
[373492588,1753021849956,-269.21891764,0.00019248,2]
[373492590,1753021849965,-500.0,0.00019273,2]
[373492592,1753021849975,-500.0,0.00019273,2]
[373492594,1753021849987,-281.51346763,0.00019273,2]
[373492596,1753021849999,-218.48653237,0.00019273,2]
[373492598,1753021850009,-160.74483846,0.00019273,2]
[373492600,1753021850021,-156.76292531,0.00019273,2]
[373492602,1753021850030,-500.0,0.00019273,2]
[373492605,1753021850040,-500.0,0.00019273,2]
[373492607,1753021850051,-260.22701045,0.00019273,2]
[373492608,1753021850061,-50.61161074,0.00019273,2]
[373492611,1753021850072,-261.52156641,0.00019273,2]
[373492613,1753021850083,-187.86682285,0.00019273,2]
[373492615,1753021850094,-71.37297132,0.00019273,2]
[373492617,1753021850106,-428.62702868,0.00019273,2]
[373492619,1753021850115,-229.85140491,0.00019273,2]
[373492621,1753021850126,-270.14859509,0.00019273,2]
[373492623,1753021850135,-480.0,0.00019286,2]
[373492625,1753021850146,-480.0,0.00019286,2]
[373492627,1753021850155,-480.0,0.00019286,2]
[373492629,1753021850164,-480.0,0.00019286,2]
[373492631,1753021850174,-480.0,0.00019286,2]
[373492633,1753021850183,-480.0,0.00019286,2]
[373492635,1753021850192,-480.0,0.00019286,2]
[373492637,1753021850201,-500.0,0.00019286,2]
[373492639,1753021850211,-500.0,0.00019286,2]
[373492641,1753021850221,-150.0,0.00019286,2]
[373492643,1753021850232,-227.25712619,0.00019286,2]
[373492646,1753021850244,-272.74287381,0.00019286,2]
[373492648,1753021850254,-500.0,0.00019286,2]
[373492650,1753021850264,-500.0,0.00019286,2]
[373492652,1753021850273,-500.0,0.00019286,2]
[373492654,1753021850282,-1305.81,0.00019286,2]
[373492656,1753021850292,-480.0,0.00019287,2]
[373492658,1753021850302,-480.0,0.00019287,2]
[373492660,1753021850311,-480.0,0.00019287,2]
[373492662,1753021850325,-480.0,0.00019287,2]
[373492664,1753021850335,-480.0,0.00019287,2]
[373492666,1753021850344,-480.0,0.00019287,2]
[373492668,1753021850353,-313.195665,0.00019287,2]
[373492670,1753021850363,-480.0,0.00019287,2]
[373492672,1753021850372,-373.682193,0.00019287,2]
[373492674,1753021850382,-364.832101,0.00019287,2]
[373492676,1753021850391,-480.0,0.00019287,2]
[373492678,1753021850400,-480.0,0.00019287,2]
[373492680,1753021850409,-180.55497511,0.00019287,2]
[373492695,1753021850542,-386.63502489,0.00019287,2]
[373492697,1753021850551,-480.0,0.00019287,2]
[373492699,1753021850561,-480.0,0.00019287,2]
[373492701,1753021850570,-270.54,0.00019287,2]
[373492703,1753021850579,-480.0,0.00019287,2]
[373492705,1753021850589,-480.0,0.00019287,2]
[373492707,1753021850598,-480.0,0.00019287,2]
[373492709,1753021850608,-480.0,0.00019287,2]
[373492711,1753021850617,-480.0,0.00019287,2]
[373492713,1753021850625,-480.0,0.00019287,2]
[373492715,1753021850635,-480.0,0.00019287,2]
[373492717,1753021850645,-183.62943342,0.00019287,2]
[373492720,1753021850657,-296.37056658,0.00019287,2]
[373492722,1753021850666,-188.6984019,0.00019287,2]
[373492801,1753021851420,-480.0,0.00019178,2]
[373492803,1753021851429,-480.0,0.00019178,2]
[373492805,1753021851438,-480.0,0.00019178,2]
[373492806,1753021851448,-291.3015981,0.00019287,2]
[373492808,1753021851457,-480.0,0.00019287,2]
[373492810,1753021851467,-480.0,0.00019287,2]
[373492813,1753021851476,-480.0,0.00019287,2]
[373492815,1753021851487,-456.87907221,0.00019287,2]
[373492817,1753021851499,-23.12092779,0.00019287,2]
[373492819,1753021851508,-480.0,0.00019287,2]
[373492821,1753021851517,-180.91058973,0.00019287,2]
[373492823,1753021851529,-299.08941027,0.00019287,2]
[373492825,1753021851538,-287.91058973,0.00019287,2]
[373492828,1753021851555,-192.08941027,0.00019287,2]
[373492830,1753021851564,-466.74487773,0.00019287,2]
[373492832,1753021851577,-13.25512227,0.00019287,2]
[373492834,1753021851586,-480.0,0.00019287,2]
[373492836,1753021851595,-665.23,0.00019287,2]
[373492838,1753021851605,-480.0,0.00019287,2]
[373492840,1753021851614,-480.0,0.00019287,2]
[373492842,1753021851624,-480.0,0.00019287,2]
[373492844,1753021851633,-480.0,0.00019287,2]
[373492846,1753021851643,-320.0,0.00019287,2]
[373492848,1753021851652,-480.0,0.00019287,2]
[373492850,1753021851661,-319.09587118,0.00019287,2]
[373492852,1753021851674,-160.90412882,0.00019287,2]
[373492854,1753021851683,-480.0,0.00019287,2]
[373492856,1753021851692,-480.0,0.00019287,2]
[373492857,1753021851702,-480.0,0.00019287,2]
[373492858,1753021851711,-480.0,0.00019287,2]
[373492859,1753021851721,-480.0,0.00019287,2]
[373492860,1753021851731,-480.0,0.00019287,2]
[373492861,1753021851741,-480.0,0.00019287,2]
[373492862,1753021851750,-236.07,0.00019287,2]
[373492863,1753021851760,-212.44539575,0.00019287,2]
[373492872,1753021851891,-480.0,0.00019178,2]
[373492874,1753021851900,-267.55460425,0.00019287,2]
[373492875,1753021851910,-480.0,0.00019287,2]
[373492878,1753021851920,-480.0,0.00019287,2]
[373492880,1753021851929,-480.0,0.00019287,2]
[373492881,1753021851939,-480.0,0.00019287,2]
[373492883,1753021851949,-454.24,0.00019287,2]
[373492885,1753021851959,-480.0,0.00019287,2]
[373492887,1753021851969,-480.0,0.00019287,2]
[373492889,1753021851978,-408.1,0.00019287,2]
[373492891,1753021851989,-320.0,0.00019287,2]
[373492893,1753021851999,-340.0,0.00019287,2]
[373492895,1753021852008,-214.63400688,0.00019287,2]
[373492897,1753021852018,-480.0,0.00019287,2]
[373492899,1753021852028,-480.0,0.00019287,2]
[373492901,1753021852038,-480.0,0.00019287,2]
[373492904,1753021852048,-340.0,0.00019287,2]
[373492906,1753021852060,-480.0,0.00019287,2]
[373492907,1753021852071,-480.0,0.00019287,2]
[373492909,1753021852081,-480.0,0.00019287,2]
[373492911,1753021852091,-480.0,0.00019287,2]
[373492913,1753021852100,-480.0,0.00019287,2]
[373492915,1753021852109,-480.0,0.00019287,2]
[373492917,1753021852119,-480.0,0.00019287,2]
[373492920,1753021852137,-480.0,0.00019287,2]
[373492921,1753021852147,-480.0,0.00019287,2]
[373492923,1753021852156,-480.0,0.00019287,2]
[373492925,1753021852166,-480.0,0.00019287,2]
[373492927,1753021852175,-1443.9,0.00019287,2]
[373492929,1753021852185,-480.0,0.00019287,2]
[373492932,1753021852195,-480.0,0.00019287,2]
[373492933,1753021852204,-480.0,0.00019287,2]
[373492935,1753021852214,-480.0,0.00019287,2]
[373492937,1753021852223,-480.0,0.00019287,2]
[373492939,1753021852233,-1392.81,0.00019287,2]
[373492941,1753021852243,-480.0,0.00019287,2]
[373492943,1753021852252,-420.0,0.00019287,2]
[373492945,1753021852262,-420.0,0.00019287,2]
[373492947,1753021852274,-480.0,0.00019287,2]
[373492949,1753021852283,-850.04,0.00019287,2]
[373492951,1753021852293,-480.0,0.00019287,2]
[373492953,1753021852302,-1099.88,0.00019287,2]
[373492955,1753021852312,-480.0,0.00019287,2]
[373492957,1753021852321,-480.0,0.00019287,2]
[373492959,1753021852331,-480.0,0.00019287,2]
[373492961,1753021852341,-480.0,0.00019287,2]
[373492963,1753021852350,-480.0,0.00019287,2]
[373492965,1753021852360,-420.0,0.00019287,2]
[373492967,1753021852370,-480.0,0.00019287,2]
[373492969,1753021852380,-547.73,0.00019287,2]
[373492971,1753021852390,-480.0,0.00019287,2]
[373492974,1753021852399,-480.0,0.00019287,2]
[373492975,1753021852409,-480.0,0.00019287,2]
[373492978,1753021852419,-420.0,0.00019287,2]
[373492979,1753021852429,-2608.72,0.00019287,2]
[373492982,1753021852439,-951.19,0.00019287,2]
[373492984,1753021852449,-480.0,0.00019287,2]
[373492985,1753021852459,-481.77,0.00019287,2]
[373492987,1753021852468,-480.0,0.00019287,2]
[373492989,1753021852479,-576.63,0.00019287,2]
[373492991,1753021852489,-480.0,0.00019287,2]
[373492993,1753021852499,-480.0,0.00019287,2]
[373492995,1753021852510,-480.0,0.00019287,2]
[373492998,1753021852520,-480.0,0.00019287,2]
[373492999,1753021852530,-480.0,0.00019287,2]
[373493002,1753021852540,-480.0,0.00019287,2]
[373493004,1753021852550,-460.0,0.00019287,2]
[373493006,1753021852560,-995.71,0.00019287,2]
[373493007,1753021852569,-1127.77,0.00019287,2]
[373493010,1753021852579,-480.0,0.00019287,2]
[373493012,1753021852589,-994.46,0.00019287,2]
[373493014,1753021852598,-480.0,0.00019287,2]
[373493016,1753021852608,-641.6,0.00019287,2]
[373493017,1753021852621,-464.49,0.00019287,2]
[373493019,1753021852630,-828.85,0.00019287,2]
[373493021,1753021852639,-480.0,0.00019287,2]
[373493023,1753021852648,-480.0,0.00019287,2]
[373493025,1753021852658,-1404.43,0.00019287,2]
[373493027,1753021852667,-499.38,0.00019287,2]
[373493029,1753021852677,-897.75,0.00019287,2]
[373493031,1753021852686,-603.66,0.00019287,2]
[373493033,1753021852695,-490.98,0.00019287,2]
[373493035,1753021852705,-480.0,0.00019287,2]
[373493037,1753021852714,-480.0,0.00019287,2]
[373493039,1753021852724,-480.0,0.00019287,2]
[373493041,1753021852735,-480.0,0.00019287,2]
[373493043,1753021852744,-480.0,0.00019287,2]
[373493045,1753021852754,-480.0,0.00019287,2]
[373493047,1753021852763,-480.0,0.00019287,2]
[373493049,1753021852772,-480.0,0.00019287,2]
[373493051,1753021852781,-480.0,0.00019287,2]
[373493053,1753021852791,-670.8,0.00019287,2]
[373493055,1753021852800,-721.73,0.00019287,2]
[373493057,1753021852810,-420.0,0.00019287,2]
[373493059,1753021852819,-4913.79,0.00019287,2]
[373493061,1753021852829,-813.8,0.00019287,2]
[373493063,1753021852838,-5868.21,0.00019287,2]
[373493065,1753021852847,-243.12195501,0.00019287,2]
[373493067,1753021852857,-480.0,0.00019287,2]
[373493069,1753021852866,-480.0,0.00019287,2]
[373493071,1753021852876,-480.0,0.00019287,2]
[373493073,1753021852885,-480.0,0.00019287,2]
[373493075,1753021852895,-480.0,0.00019287,2]
[373493077,1753021852904,-480.0,0.00019287,2]
[373493079,1753021852914,-420.0,0.00019287,2]
[373493081,1753021852923,-480.0,0.00019287,2]
[373493083,1753021852932,-480.0,0.00019287,2]
[373493085,1753021852942,-480.0,0.00019287,2]
[373493087,1753021852951,-480.0,0.00019287,2]
[373493089,1753021852961,-480.0,0.00019287,2]
[373493091,1753021852970,-480.0,0.00019287,2]
[373493093,1753021852981,-480.0,0.00019287,2]
[373493095,1753021852990,-420.0,0.00019287,2]
[373493097,1753021852999,-1473.19,0.00019287,2]
[373493099,1753021853009,-480.0,0.00019287,2]
[373493101,1753021853018,-480.0,0.00019287,2]
[373493103,1753021853028,-867.07,0.00019287,2]
[373493105,1753021853037,-480.0,0.00019287,2]
[373493107,1753021853046,-708.96,0.00019287,2]
[373493109,1753021853059,-480.0,0.00019287,2]
[373493111,1753021853069,-480.0,0.00019287,2]
[373493113,1753021853079,-480.0,0.00019287,2]
[373493115,1753021853090,-480.0,0.00019287,2]
[373493117,1753021853103,-651.44,0.00019287,2]
[373493119,1753021853113,-420.0,0.00019287,2]
[373493121,1753021853122,-480.0,0.00019287,2]
[373493123,1753021853134,-480.0,0.00019287,2]
[373493125,1753021853144,-619.32,0.00019287,2]
[373493127,1753021853153,-279.21,0.00019287,2]
[373493129,1753021853163,-480.0,0.00019287,2]
[373493131,1753021853172,-998.54,0.00019287,2]
[373493133,1753021853182,-752.67,0.00019287,2]
[373493135,1753021853192,-420.0,0.00019287,2]
[373493137,1753021853201,-420.0,0.00019287,2]
[373493139,1753021853211,-1009.52,0.00019287,2]
[373493141,1753021853221,-480.0,0.00019287,2]
[373493160,1753021853389,-480.0,0.00019287,2]
[373493162,1753021853399,-480.0,0.00019287,2]
[373493164,1753021853410,-484.95998564,0.00019287,2]
[373493166,1753021853420,-279.19580858,0.00019287,2]
[373493168,1753021853429,-480.0,0.00019287,2]
[373493170,1753021853439,-480.0,0.00019287,2]
[373493172,1753021853449,-480.0,0.00019287,2]
[373493174,1753021853458,-480.0,0.00019287,2]
[373493176,1753021853467,-480.0,0.00019287,2]
[373493178,1753021853477,-480.0,0.00019287,2]
[373493180,1753021853488,-922.54,0.00019287,2]
[373493182,1753021853498,-480.0,0.00019287,2]
[373493184,1753021853508,-480.0,0.00019287,2]
[373493186,1753021853517,-929.28,0.00019287,2]
[373493188,1753021853526,-1448.41,0.00019287,2]
[373493190,1753021853537,-564.3,0.00019287,2]
[373493192,1753021853546,-774.92,0.00019287,2]
[373493194,1753021853556,-480.0,0.00019287,2]
[373493196,1753021853565,-420.0,0.00019287,2]
[373493198,1753021853574,-480.0,0.00019287,2]
[373493200,1753021853584,-480.0,0.00019287,2]
[373493202,1753021853594,-480.0,0.00019287,2]
[373493204,1753021853604,-924.93,0.00019287,2]
[373493206,1753021853613,-613.24,0.00019287,2]
[373493208,1753021853622,-480.0,0.00019287,2]
[373493210,1753021853632,-1319.46,0.00019287,2]
[373493212,1753021853641,-480.0,0.00019287,2]
[373493214,1753021853651,-480.0,0.00019287,2]
[373493216,1753021853661,-480.0,0.00019287,2]
[373493218,1753021853671,-480.0,0.00019287,2]
[373493220,1753021853680,-285.50246549,0.00019287,2]
[373493222,1753021853690,-1927.74,0.00019287,2]
[373493224,1753021853699,-9862.65,0.00019287,2]
[373493226,1753021853709,-480.0,0.00019287,2]
[373493228,1753021853718,-480.0,0.00019287,2]
[373493230,1753021853728,-480.0,0.00019287,2]
[373493232,1753021853741,-489.48,0.00019287,2]
[373493234,1753021853750,-480.0,0.00019287,2]
[373493236,1753021853760,-480.0,0.00019287,2]
[373493238,1753021853770,-954.23,0.00019287,2]
[373493240,1753021853779,-383.76939076,0.00019287,2]
[373493242,1753021853788,-796.22,0.00019287,2]
[373493244,1753021853798,-480.0,0.00019287,2]
[373493246,1753021853807,-480.0,0.00019287,2]
[373493248,1753021853817,-480.0,0.00019287,2]
[373493250,1753021853827,-480.0,0.00019287,2]
[373493252,1753021853836,-480.0,0.00019287,2]
[373493254,1753021853846,-420.0,0.00019287,2]
[373493256,1753021853856,-480.0,0.00019287,2]
[373493258,1753021853866,-480.0,0.00019287,2]
[373493260,1753021853875,-480.0,0.00019287,2]
[373493262,1753021853885,-480.0,0.00019287,2]
[373493264,1753021853895,-480.0,0.00019287,2]
[373493266,1753021853905,-480.0,0.00019287,2]
[373493268,1753021853916,-480.0,0.00019287,2]
[373493270,1753021853926,-480.0,0.00019287,2]
[373493272,1753021853936,-480.0,0.00019287,2]
[373493274,1753021853946,-2724.33,0.00019287,2]
[373493276,1753021853955,-400.0,0.00019287,2]
[373493278,1753021853965,-480.0,0.00019287,2]
[373493280,1753021853975,-693.39,0.00019287,2]
[373493282,1753021853986,-480.0,0.00019287,2]
[373493284,1753021853996,-992.45,0.00019287,2]
[373493286,1753021854007,-420.0,0.00019287,2]
[373493288,1753021854017,-427.73669886,0.00019287,2]
[373493290,1753021854027,-847.51,0.00019287,2]
[373493292,1753021854037,-480.0,0.00019287,2]
[373493294,1753021854047,-480.0,0.00019287,2]
[373493297,1753021854061,-420.0,0.00019287,2]
[373493299,1753021854071,-719.39,0.00019287,2]
[373493300,1753021854080,-480.0,0.00019287,2]
[373493303,1753021854090,-480.0,0.00019287,2]
[373493304,1753021854101,-480.0,0.00019287,2]
[373493306,1753021854111,-480.0,0.00019287,2]
[373493308,1753021854121,-1491.03,0.00019287,2]
[373493310,1753021854132,-480.0,0.00019287,2]
[373493313,1753021854142,-609.42,0.00019287,2]
[373493315,1753021854151,-480.0,0.00019287,2]
[373493317,1753021854161,-196.33543811,0.00019287,2]